[Event "*** SCC Grand Prix: Titled Tuesday Blitz"]
[Site "Chess.com"]
[Date "2020.07.21"]
[Round "4"]
[White "Happy1712Drummer"]
[Black "Killertoy"]
[Result "1-0"]
[WhiteElo "2420"]
[BlackElo "2226"]
[TimeControl "180+1"]
[EndTime "10:39:31 PDT"]
[Termination "Happy1712Drummer won on time"]

1. d4 {[%clk 0:03:00.3]} 1... f5 {[%clk 0:02:55.8]} 2. Nf3 {[%clk 0:02:52.2]}
2... Nf6 {[%clk 0:02:55.7]} 3. c4 {[%clk 0:02:43.3]} 3... g6 {[%clk 0:02:55.7]}
4. Nc3 {[%clk 0:02:33.9]} 4... Bg7 {[%clk 0:02:55.7]} 5. Bg5 {[%clk 0:02:32.6]}
5... O-O {[%clk 0:02:56]} 6. Qd2 {[%clk 0:02:22.4]} 6... Ne4 {[%clk 0:02:51.5]}
7. Nxe4 {[%clk 0:02:17.9]} 7... fxe4 {[%clk 0:02:52.4]} 8. Nh4 {[%clk
0:02:10.9]} 8... c5 {[%clk 0:02:51.1]} 9. d5 {[%clk 0:02:04.6]} 9... d6 {[%clk
0:02:26.7]} 10. g3 {[%clk 0:02:01.9]} 10... Bf6 {[%clk 0:02:15.7]} 11. Bg2
{[%clk 0:01:57.4]} 11... Bxg5 {[%clk 0:02:13]} 12. Qxg5 {[%clk 0:01:56.1]} 12...
Qa5+ {[%clk 0:02:10.2]} 13. Kf1 {[%clk 0:01:47.8]} 13... Qb4 {[%clk 0:01:54.5]}
14. Nxg6 {[%clk 0:01:39.6]} 14... hxg6 {[%clk 0:01:07]} 15. Qxg6+ {[%clk
0:01:37.9]} 15... Kh8 {[%clk 0:01:07.1]} 16. Bxe4 {[%clk 0:01:37.7]} 16... Bf5
{[%clk 0:00:48.8]} 17. Qh6+ {[%clk 0:01:10.7]} 17... Kg8 {[%clk 0:00:48.2]} 18.
Bxf5 {[%clk 0:01:10.7]} 18... Rxf5 {[%clk 0:00:47.8]} 19. Qg6+ {[%clk
0:01:10.1]} 19... Kh8 {[%clk 0:00:47.8]} 20. Qxf5 {[%clk 0:01:09.5]} 20... Na6
{[%clk 0:00:47.8]} 21. Qh5+ {[%clk 0:01:06.3]} 21... Kg7 {[%clk 0:00:46.3]} 22.
Qg4+ {[%clk 0:01:04.2]} 22... Kh7 {[%clk 0:00:44.6]} 23. b3 {[%clk 0:01:02.9]}
23... Qc3 {[%clk 0:00:39.7]} 24. Rd1 {[%clk 0:01:00.7]} 24... Rf8 {[%clk
0:00:35]} 25. Qh4+ {[%clk 0:00:55.3]} 25... Kg8 {[%clk 0:00:34.5]} 26. Qg5+
{[%clk 0:00:45.7]} 26... Kh8 {[%clk 0:00:33.6]} 27. Kg2 {[%clk 0:00:44.5]} 27...
Nb4 {[%clk 0:00:29.2]} 28. Qxe7 {[%clk 0:00:36.7]} 28... Rf6 {[%clk 0:00:26.5]}
29. Qe8+ {[%clk 0:00:34.3]} 29... Kg7 {[%clk 0:00:25.8]} 30. Qh5 {[%clk
0:00:32.1]} 30... Nc2 {[%clk 0:00:22.6]} 31. Rd3 {[%clk 0:00:27.4]} 31... Qe5
{[%clk 0:00:20]} 32. Qxe5 {[%clk 0:00:25.5]} 32... dxe5 {[%clk 0:00:20.9]} 33.
e3 {[%clk 0:00:23.1]} 33... Nb4 {[%clk 0:00:20.2]} 34. Rd2 {[%clk 0:00:22.6]}
34... e4 {[%clk 0:00:21.1]} 35. Rhd1 {[%clk 0:00:20.7]} 35... b6 {[%clk
0:00:20.1]} 36. a3 {[%clk 0:00:20.7]} 36... Nd3 {[%clk 0:00:19.3]} 37. Rxd3
{[%clk 0:00:20.8]} 37... exd3 {[%clk 0:00:20.2]} 38. Rxd3 {[%clk 0:00:21.2]}
38... Rd6 {[%clk 0:00:21.1]} 39. e4 {[%clk 0:00:21.3]} 39... Kf6 {[%clk
0:00:22]} 40. f4 {[%clk 0:00:21.8]} 40... Rd8 {[%clk 0:00:22.4]} 41. e5+ {[%clk
0:00:22.3]} 41... Kf5 {[%clk 0:00:23.3]} 42. Kf3 {[%clk 0:00:22.7]} 42... Rg8
{[%clk 0:00:22.1]} 43. h3 {[%clk 0:00:22.1]} 43... Kg6 {[%clk 0:00:22.2]} 44. g4
{[%clk 0:00:21.9]} 44... Kf7 {[%clk 0:00:23.1]} 45. d6 {[%clk 0:00:18.4]} 45...
Rh8 {[%clk 0:00:24]} 46. Ke4 {[%clk 0:00:18.6]} 46... Ke8 {[%clk 0:00:22.1]} 47.
Kd5 {[%clk 0:00:17.1]} 47... Kd7 {[%clk 0:00:21.2]} 48. f5 {[%clk 0:00:17.2]}
48... Kc8 {[%clk 0:00:22.1]} 49. e6 {[%clk 0:00:17.5]} 49... Kb7 {[%clk
0:00:21.7]} 50. d7 {[%clk 0:00:18]} 50... Ra8 {[%clk 0:00:20.6]} 51. Ke5 {[%clk
0:00:18.3]} 51... Kc7 {[%clk 0:00:20.1]} 52. e7 {[%clk 0:00:18.4]} 52... a5
{[%clk 0:00:18]} 53. d8=Q+ {[%clk 0:00:17.5]} 1-0

[Event "*** SCC Grand Prix: Titled Tuesday Blitz"]
[Site "Chess.com"]
[Date "2020.07.21"]
[Round "4"]
[White "2nd_life"]
[Black "Mazetovic"]
[Result "1/2-1/2"]
[WhiteElo "2484"]
[BlackElo "2660"]
[TimeControl "180+1"]
[EndTime "10:39:37 PDT"]
[Termination "Game drawn by repetition"]

1. e4 {[%clk 0:03:00.9]} 1... c5 {[%clk 0:02:58.8]} 2. Nf3 {[%clk 0:03:01]} 2...
Nc6 {[%clk 0:02:57.8]} 3. Bb5 {[%clk 0:03:00.7]} 3... g6 {[%clk 0:02:53.9]} 4.
Bxc6 {[%clk 0:03:00.6]} 4... bxc6 {[%clk 0:02:52.6]} 5. O-O {[%clk 0:03:00.2]}
5... Bg7 {[%clk 0:02:45.6]} 6. Re1 {[%clk 0:02:59.7]} 6... e5 {[%clk 0:02:39.5]}
7. c3 {[%clk 0:02:41.5]} 7... Ne7 {[%clk 0:02:17.4]} 8. d4 {[%clk 0:02:32.2]}
8... cxd4 {[%clk 0:02:11.6]} 9. cxd4 {[%clk 0:02:33.1]} 9... exd4 {[%clk
0:02:11.7]} 10. Nxd4 {[%clk 0:02:17]} 10... d6 {[%clk 0:02:11]} 11. Nc3 {[%clk
0:02:10.2]} 11... O-O {[%clk 0:02:10.4]} 12. Bf4 {[%clk 0:02:08.4]} 12... Bb7
{[%clk 0:01:45.7]} 13. Nb3 {[%clk 0:02:01.5]} 13... Nc8 {[%clk 0:01:38.7]} 14.
Qd2 {[%clk 0:01:56.6]} 14... Qb6 {[%clk 0:00:50.3]} 15. Be3 {[%clk 0:01:28.8]}
15... Qa6 {[%clk 0:00:44.2]} 16. Bh6 {[%clk 0:01:22]} 16... Re8 {[%clk
0:00:26.4]} 17. Bxg7 {[%clk 0:01:20.7]} 17... Kxg7 {[%clk 0:00:26.2]} 18. h4
{[%clk 0:01:11.2]} 18... h5 {[%clk 0:00:23.2]} 19. Rad1 {[%clk 0:01:09.2]} 19...
Qb6 {[%clk 0:00:22.6]} 20. Na4 {[%clk 0:00:53.3]} 20... Qc7 {[%clk 0:00:20.5]}
21. Na5 {[%clk 0:00:48]} 21... Rb8 {[%clk 0:00:19.3]} 22. Qc3+ {[%clk
0:00:38.1]} 22... f6 {[%clk 0:00:18.8]} 23. b4 {[%clk 0:00:37.6]} 23... Nb6
{[%clk 0:00:16.7]} 24. Nxb6 {[%clk 0:00:28.7]} 24... axb6 {[%clk 0:00:16.7]} 25.
Nc4 {[%clk 0:00:28.8]} 25... Rbd8 {[%clk 0:00:16.1]} 26. Qd4 {[%clk 0:00:23.2]}
26... b5 {[%clk 0:00:15.8]} 27. Nxd6 {[%clk 0:00:20.6]} 27... Rf8 {[%clk
0:00:16.1]} 28. Qc5 {[%clk 0:00:18]} 28... Bc8 {[%clk 0:00:16]} 29. Rd4 {[%clk
0:00:17.3]} 29... Be6 {[%clk 0:00:16]} 30. a3 {[%clk 0:00:14.8]} 30... Kh7
{[%clk 0:00:15.8]} 31. Red1 {[%clk 0:00:14.2]} 31... Qe7 {[%clk 0:00:14.1]} 32.
f4 {[%clk 0:00:10]} 32... Bg8 {[%clk 0:00:14.1]} 33. g3 {[%clk 0:00:09.4]} 33...
Rd7 {[%clk 0:00:13.1]} 34. R1d2 {[%clk 0:00:09.7]} 34... Rfd8 {[%clk 0:00:13.3]}
35. Kh2 {[%clk 0:00:10.2]} 35... Qe6 {[%clk 0:00:13.6]} 36. Qxc6 {[%clk
0:00:08.1]} 36... Qg4 {[%clk 0:00:13.5]} 37. Qxb5 {[%clk 0:00:07.7]} 37... Be6
{[%clk 0:00:13.5]} 38. Qf1 {[%clk 0:00:06.5]} 38... Bg8 {[%clk 0:00:10.2]} 39.
b5 {[%clk 0:00:06.2]} 39... Qe6 {[%clk 0:00:10.2]} 40. b6 {[%clk 0:00:06.2]}
40... Rxd6 {[%clk 0:00:10.4]} 41. Rxd6 {[%clk 0:00:06]} 41... Rxd6 {[%clk
0:00:10.7]} 42. Rxd6 {[%clk 0:00:05.4]} 42... Qxd6 {[%clk 0:00:10.7]} 43. Qb1
{[%clk 0:00:04.6]} 43... Qd2+ {[%clk 0:00:10.3]} 44. Kg1 {[%clk 0:00:03.9]}
44... Qe3+ {[%clk 0:00:09.8]} 45. Kg2 {[%clk 0:00:04.3]} 45... Qe2+ {[%clk
0:00:10]} 46. Kg1 {[%clk 0:00:04.6]} 46... Ba2 {[%clk 0:00:08.1]} 47. Qb4 {[%clk
0:00:03.3]} 47... Bc4 {[%clk 0:00:07.8]} 48. Qe7+ {[%clk 0:00:01.5]} 48... Kh8
{[%clk 0:00:08.1]} 49. Qf8+ {[%clk 0:00:01.7]} 49... Kh7 {[%clk 0:00:08.2]} 50.
Qe7+ {[%clk 0:00:01.9]} 50... Kg8 {[%clk 0:00:08.4]} 51. Qe8+ {[%clk 0:00:02.4]}
51... Kg7 {[%clk 0:00:08.9]} 52. Qe7+ {[%clk 0:00:02.7]} 52... Bf7 {[%clk
0:00:09.5]} 53. b7 {[%clk 0:00:03.2]} 53... Qe1+ {[%clk 0:00:09.8]} 54. Kg2
{[%clk 0:00:03.6]} 54... Qd2+ {[%clk 0:00:10.2]} 55. Kg1 {[%clk 0:00:03.9]}
55... Qd1+ {[%clk 0:00:10.2]} 56. Kf2 {[%clk 0:00:04.3]} 56... Qc2+ {[%clk
0:00:10.1]} 57. Ke3 {[%clk 0:00:04.2]} 57... Qb3+ {[%clk 0:00:10.3]} 58. Kd4
{[%clk 0:00:04.3]} 58... Qb6+ {[%clk 0:00:10.3]} 59. Kc3 {[%clk 0:00:03.3]}
59... Qb3+ {[%clk 0:00:10.1]} 60. Kd4 {[%clk 0:00:03.5]} 60... Qb6+ {[%clk
0:00:10.2]} 61. Kc3 {[%clk 0:00:03.9]} 61... Qb3+ {[%clk 0:00:05.8]} 62. Kd4
{[%clk 0:00:04.1]} 1/2-1/2

[Event "*** SCC Grand Prix: Titled Tuesday Blitz"]
[Site "Chess.com"]
[Date "2020.07.21"]
[Round "4"]
[White "1f3_2g41-0"]
[Black "tsvet2005"]
[Result "1-0"]
[WhiteElo "2391"]
[BlackElo "2580"]
[TimeControl "180+1"]
[EndTime "10:39:40 PDT"]
[Termination "1f3_2g41-0 won by resignation"]

1. e4 {[%clk 0:03:00.9]} 1... c5 {[%clk 0:03:00.4]} 2. Nf3 {[%clk 0:02:58.6]}
2... d6 {[%clk 0:03:00.7]} 3. d4 {[%clk 0:02:51.8]} 3... cxd4 {[%clk 0:03:01.6]}
4. Nxd4 {[%clk 0:02:51]} 4... Nf6 {[%clk 0:03:02]} 5. Nc3 {[%clk 0:02:50.3]}
5... a6 {[%clk 0:03:02.4]} 6. h3 {[%clk 0:02:48.2]} 6... e5 {[%clk 0:03:02.5]}
7. Nde2 {[%clk 0:02:47.5]} 7... b5 {[%clk 0:03:02.8]} 8. g4 {[%clk 0:02:45.8]}
8... b4 {[%clk 0:03:02.8]} 9. Nd5 {[%clk 0:02:43.8]} 9... Nxd5 {[%clk
0:03:03.3]} 10. Qxd5 {[%clk 0:02:42.3]} 10... Ra7 {[%clk 0:03:03.6]} 11. Be3
{[%clk 0:02:41.7]} 11... Be6 {[%clk 0:03:03.8]} 12. Qd2 {[%clk 0:02:38.3]} 12...
Rd7 {[%clk 0:03:04.1]} 13. Bg2 {[%clk 0:02:35.4]} 13... d5 {[%clk 0:03:03.9]}
14. exd5 {[%clk 0:02:27.7]} 14... Bxd5 {[%clk 0:03:04.8]} 15. Bxd5 {[%clk
0:02:27.1]} 15... Rxd5 {[%clk 0:03:05.7]} 16. Qc1 {[%clk 0:02:24.8]} 16... Be7
{[%clk 0:02:46.7]} 17. O-O {[%clk 0:02:17.8]} 17... O-O {[%clk 0:02:45.9]} 18.
Ng3 {[%clk 0:02:18]} 18... Nd7 {[%clk 0:02:20.5]} 19. c4 {[%clk 0:02:11.1]}
19... bxc3 {[%clk 0:02:09.3]} 20. Qxc3 {[%clk 0:02:09.8]} 20... Nf6 {[%clk
0:02:05.8]} 21. g5 {[%clk 0:01:59.8]} 21... Ne8 {[%clk 0:01:56.4]} 22. Qc4
{[%clk 0:01:43.9]} 22... Qd7 {[%clk 0:01:15.9]} 23. Nf5 {[%clk 0:01:39.3]} 23...
Bd8 {[%clk 0:01:14.9]} 24. Qe4 {[%clk 0:01:31.5]} 24... Nc7 {[%clk 0:01:01.1]}
25. Rac1 {[%clk 0:01:25]} 25... Ne6 {[%clk 0:00:58.3]} 26. h4 {[%clk 0:01:24.8]}
26... g6 {[%clk 0:00:39.5]} 27. Nh6+ {[%clk 0:01:21.5]} 27... Kg7 {[%clk
0:00:33.2]} 28. Ng4 {[%clk 0:01:14.2]} 28... f5 {[%clk 0:00:14.8]} 29. gxf6+
{[%clk 0:01:13.6]} 29... Bxf6 {[%clk 0:00:14.4]} 30. Bh6+ {[%clk 0:01:13.7]}
30... Kf7 {[%clk 0:00:12.8]} 31. Bxf8 {[%clk 0:01:13.9]} 31... Rd4 {[%clk
0:00:08.4]} 32. Qf3 {[%clk 0:01:10.3]} 32... Rf4 {[%clk 0:00:04.6]} 33. Qg3
{[%clk 0:01:05.7]} 33... Kxf8 {[%clk 0:00:03.9]} 34. Nxf6 {[%clk 0:01:05.8]}
34... Rxf6 {[%clk 0:00:04.5]} 35. Qxe5 {[%clk 0:01:03.8]} 35... Kf7 {[%clk
0:00:04.5]} 36. Rfd1 {[%clk 0:01:02]} 36... Qe7 {[%clk 0:00:03.3]} 37. Rd3
{[%clk 0:00:56.6]} 37... Rf5 {[%clk 0:00:03.4]} 38. Qg3 {[%clk 0:00:52.7]} 38...
Nf4 {[%clk 0:00:03.5]} 39. Re3 {[%clk 0:00:41.9]} 39... Ne2+ {[%clk 0:00:03.6]}
40. Rxe2 {[%clk 0:00:38.3]} 40... Qxe2 {[%clk 0:00:04.5]} 41. Rc7+ {[%clk
0:00:38.3]} 41... Kf6 {[%clk 0:00:05.1]} 42. Qd6+ {[%clk 0:00:35.7]} 42... Qe6
{[%clk 0:00:05]} 43. Qf8+ {[%clk 0:00:33]} 43... Ke5 {[%clk 0:00:03.8]} 44. Qc5+
{[%clk 0:00:32.6]} 44... Kf4 {[%clk 0:00:03.3]} 45. Qd4+ {[%clk 0:00:30.7]}
45... Qe4 {[%clk 0:00:03.6]} 46. Qxe4+ {[%clk 0:00:23.6]} 46... Kxe4 {[%clk
0:00:04.5]} 47. Rxh7 {[%clk 0:00:23.9]} 47... Rc5 {[%clk 0:00:04.8]} 48. Re7+
{[%clk 0:00:22.8]} 48... Kf3 {[%clk 0:00:03.5]} 49. Re6 {[%clk 0:00:22.8]} 49...
Rc1+ {[%clk 0:00:03.3]} 50. Kh2 {[%clk 0:00:23]} 50... Rc2 {[%clk 0:00:03.8]}
51. Rf6+ {[%clk 0:00:21.8]} 51... Kg4 {[%clk 0:00:03.9]} 52. Rxg6+ {[%clk
0:00:21.9]} 52... Kxh4 {[%clk 0:00:03.9]} 53. Kg2 {[%clk 0:00:20.2]} 53... a5
{[%clk 0:00:03.9]} 54. Ra6 {[%clk 0:00:19.8]} 54... Rxb2 {[%clk 0:00:03.8]} 55.
Rxa5 {[%clk 0:00:20.4]} 55... Kg4 {[%clk 0:00:04.6]} 56. a4 {[%clk 0:00:20.1]}
56... Ra2 {[%clk 0:00:04.7]} 57. Ra8 {[%clk 0:00:19.6]} 57... Kf4 {[%clk
0:00:04.1]} 58. Rh8 {[%clk 0:00:19.3]} 58... Kg5 {[%clk 0:00:03.5]} 59. Ra8
{[%clk 0:00:17.4]} 59... Kf4 {[%clk 0:00:03.9]} 60. a5 {[%clk 0:00:17.8]} 60...
Kf5 {[%clk 0:00:03.7]} 61. a6 {[%clk 0:00:18]} 61... Kf6 {[%clk 0:00:04]} 62. a7
{[%clk 0:00:18.1]} 62... Kf7 {[%clk 0:00:03.4]} 63. Rh8 {[%clk 0:00:17.3]} 1-0

[Event "*** SCC Grand Prix: Titled Tuesday Blitz"]
[Site "Chess.com"]
[Date "2020.07.21"]
[Round "4"]
[White "dopolian"]
[Black "ExtremeLearner"]
[Result "1-0"]
[WhiteElo "2432"]
[BlackElo "2262"]
[TimeControl "180+1"]
[EndTime "10:39:40 PDT"]
[Termination "dopolian won by checkmate"]

1. Nf3 {[%clk 0:03:00.9]} 1... d5 {[%clk 0:02:59.7]} 2. c4 {[%clk 0:03:01.2]}
2... c6 {[%clk 0:02:55.5]} 3. g3 {[%clk 0:03:00.9]} 3... Nf6 {[%clk 0:02:53.6]}
4. b3 {[%clk 0:03:00.3]} 4... g6 {[%clk 0:02:46.7]} 5. Bb2 {[%clk 0:02:59]} 5...
Bg7 {[%clk 0:02:46.5]} 6. Bg2 {[%clk 0:02:58.8]} 6... O-O {[%clk 0:02:45.7]} 7.
O-O {[%clk 0:02:58.5]} 7... Bg4 {[%clk 0:02:43.6]} 8. d3 {[%clk 0:02:56]} 8...
Nbd7 {[%clk 0:02:41.7]} 9. Nbd2 {[%clk 0:02:54.3]} 9... Re8 {[%clk 0:02:36.2]}
10. h3 {[%clk 0:02:42.9]} 10... Bxf3 {[%clk 0:02:33]} 11. Nxf3 {[%clk
0:02:43.8]} 11... e5 {[%clk 0:02:30.8]} 12. Qc2 {[%clk 0:02:43.8]} 12... Rc8
{[%clk 0:02:24.3]} 13. b4 {[%clk 0:02:26.4]} 13... a5 {[%clk 0:02:20.1]} 14. a3
{[%clk 0:02:26.3]} 14... Qb6 {[%clk 0:02:10.5]} 15. Bc3 {[%clk 0:02:10.4]} 15...
axb4 {[%clk 0:01:52.2]} 16. axb4 {[%clk 0:02:11.3]} 16... d4 {[%clk 0:01:34.6]}
17. Bd2 {[%clk 0:01:28.3]} 17... e4 {[%clk 0:01:29.6]} 18. c5 {[%clk 0:01:28.5]}
18... Qc7 {[%clk 0:01:12.6]} 19. Nxd4 {[%clk 0:01:25]} 19... e3 {[%clk
0:01:12.3]} 20. Bxe3 {[%clk 0:01:18.2]} 20... Rxe3 {[%clk 0:01:12.2]} 21. fxe3
{[%clk 0:01:18.5]} 21... Qxg3 {[%clk 0:01:12.8]} 22. Qd2 {[%clk 0:01:01]} 22...
Bh6 {[%clk 0:01:05]} 23. Nf3 {[%clk 0:00:43.7]} 23... Nd5 {[%clk 0:00:57.4]} 24.
Qe1 {[%clk 0:00:35.7]} 24... Bxe3+ {[%clk 0:00:46]} 25. Kh1 {[%clk 0:00:36]}
25... Qxe1 {[%clk 0:00:33.9]} 26. Rfxe1 {[%clk 0:00:28.7]} 26... Nxb4 {[%clk
0:00:34.1]} 27. Rf1 {[%clk 0:00:22.9]} 27... Nxc5 {[%clk 0:00:27.8]} 28. Rab1
{[%clk 0:00:21.8]} 28... Nd5 {[%clk 0:00:21.4]} 29. Ne5 {[%clk 0:00:19.8]} 29...
f6 {[%clk 0:00:15.1]} 30. Nc4 {[%clk 0:00:18.4]} 30... Re8 {[%clk 0:00:06.1]}
31. Bf3 {[%clk 0:00:08.9]} 31... Kg7 {[%clk 0:00:04.8]} 32. Na5 {[%clk
0:00:07.5]} 32... Re7 {[%clk 0:00:03.5]} 33. Nb3 {[%clk 0:00:03.1]} 33... Nc3
{[%clk 0:00:02.8]} 34. Rb2 {[%clk 0:00:01.6]} 34... Nxb3 {[%clk 0:00:02.7]} 35.
Rxb3 {[%clk 0:00:01.9]} 35... Nb5 {[%clk 0:00:02.8]} 36. Rfb1 {[%clk 0:00:01.7]}
36... Nd4 {[%clk 0:00:03.1]} 37. Rb4 {[%clk 0:00:02.2]} 37... b5 {[%clk
0:00:02.8]} 38. R4b2 {[%clk 0:00:02.1]} 38... f5 {[%clk 0:00:03.4]} 39. Kg2
{[%clk 0:00:02.2]} 39... f4 {[%clk 0:00:03.9]} 40. Be4 {[%clk 0:00:02.2]} 40...
Re6 {[%clk 0:00:04.3]} 41. h4 {[%clk 0:00:02.7]} 41... Kf6 {[%clk 0:00:04.7]}
42. Bf3 {[%clk 0:00:03.3]} 42... h6 {[%clk 0:00:05.1]} 43. h5 {[%clk 0:00:03.6]}
43... g5 {[%clk 0:00:05.5]} 44. Bg4 {[%clk 0:00:03.4]} 44... Rd6 {[%clk
0:00:05.5]} 45. Ra1 {[%clk 0:00:04]} 45... Ke5 {[%clk 0:00:05.9]} 46. Ra8 {[%clk
0:00:03.8]} 46... c5 {[%clk 0:00:05.6]} 47. Re8+ {[%clk 0:00:04.4]} 47... Kf6
{[%clk 0:00:06.1]} 48. Ra2 {[%clk 0:00:04.7]} 48... f3+ {[%clk 0:00:04.7]} 49.
Bxf3 {[%clk 0:00:04.4]} 49... Nxf3 {[%clk 0:00:05.2]} 50. Kxf3 {[%clk
0:00:05.3]} 50... Kf7 {[%clk 0:00:05.6]} 51. Raa8 {[%clk 0:00:04.5]} 51... b4
{[%clk 0:00:05.1]} 52. Rxe3 {[%clk 0:00:04.2]} 52... b3 {[%clk 0:00:04.9]} 53.
Rb8 {[%clk 0:00:03.9]} 53... Rf6+ {[%clk 0:00:04.6]} 54. Kg2 {[%clk 0:00:04.2]}
54... Rf4 {[%clk 0:00:04.5]} 55. Rxb3 {[%clk 0:00:04.6]} 55... Rg4+ {[%clk
0:00:05.4]} 56. Kf3 {[%clk 0:00:04.4]} 56... Rh4 {[%clk 0:00:06.3]} 57. Kg3
{[%clk 0:00:04.8]} 57... Rxh5 {[%clk 0:00:07.2]} 58. Rf3+ {[%clk 0:00:05.2]}
58... Kg6 {[%clk 0:00:07.6]} 59. Rb6+ {[%clk 0:00:05.8]} 59... Kg7 {[%clk
0:00:08]} 60. Rff6 {[%clk 0:00:06.2]} 60... Rh1 {[%clk 0:00:08.2]} 61. Rg6+
{[%clk 0:00:07.1]} 61... Kh7 {[%clk 0:00:08.7]} 62. e4 {[%clk 0:00:05.8]} 62...
Rg1+ {[%clk 0:00:08.8]} 63. Kf2 {[%clk 0:00:06.2]} 63... Rh1 {[%clk 0:00:08.9]}
64. Rgd6 {[%clk 0:00:05.9]} 64... h5 {[%clk 0:00:08.9]} 65. Rb7+ {[%clk
0:00:06.3]} 65... Kg8 {[%clk 0:00:09.8]} 66. Rd8# {[%clk 0:00:07]} 1-0

[Event "*** SCC Grand Prix: Titled Tuesday Blitz"]
[Site "Chess.com"]
[Date "2020.07.21"]
[Round "4"]
[White "michaelshahade"]
[Black "ExcitingTrap"]
[Result "1-0"]
[WhiteElo "2035"]
[BlackElo "2204"]
[TimeControl "180+1"]
[EndTime "10:39:41 PDT"]
[Termination "michaelshahade won by checkmate"]

1. c4 {[%clk 0:02:29.5]} 1... e5 {[%clk 0:02:58.5]} 2. Nc3 {[%clk 0:02:11]} 2...
Bb4 {[%clk 0:02:57.2]} 3. Nf3 {[%clk 0:02:07.3]} 3... d6 {[%clk 0:02:54.4]} 4.
Qc2 {[%clk 0:02:04.4]} 4... Nf6 {[%clk 0:02:52.8]} 5. a3 {[%clk 0:02:02.1]} 5...
Bxc3 {[%clk 0:02:45.5]} 6. Qxc3 {[%clk 0:02:01.1]} 6... O-O {[%clk 0:02:41.2]}
7. d3 {[%clk 0:01:58.6]} 7... Nc6 {[%clk 0:02:39.2]} 8. g3 {[%clk 0:01:53.5]}
8... h6 {[%clk 0:02:38]} 9. Bg2 {[%clk 0:01:53.4]} 9... e4 {[%clk 0:02:29.8]}
10. Nd4 {[%clk 0:01:38.7]} 10... Nxd4 {[%clk 0:02:20.3]} 11. Qxd4 {[%clk
0:01:37.6]} 11... exd3 {[%clk 0:02:08.2]} 12. Qxd3 {[%clk 0:01:32.1]} 12... Re8
{[%clk 0:02:03.8]} 13. O-O {[%clk 0:01:28.4]} 13... Rb8 {[%clk 0:02:02.2]} 14.
b4 {[%clk 0:01:22.2]} 14... Ng4 {[%clk 0:01:52.3]} 15. Bb2 {[%clk 0:01:17.3]}
15... Ne5 {[%clk 0:01:51.8]} 16. Qc3 {[%clk 0:01:13.2]} 16... Qf6 {[%clk
0:01:17.4]} 17. f4 {[%clk 0:01:00]} 17... Ng4 {[%clk 0:01:17.1]} 18. Qxf6 {[%clk
0:00:51.1]} 18... Nxf6 {[%clk 0:01:17.5]} 19. Bxf6 {[%clk 0:00:46.6]} 19... gxf6
{[%clk 0:01:18.4]} 20. Bf3 {[%clk 0:00:40.1]} 20... Bf5 {[%clk 0:01:10.9]} 21.
Rfe1 {[%clk 0:00:34.8]} 21... Be4 {[%clk 0:01:05]} 22. Kf2 {[%clk 0:00:31.3]}
22... c6 {[%clk 0:00:54]} 23. Rad1 {[%clk 0:00:30]} 23... d5 {[%clk 0:00:52.3]}
24. cxd5 {[%clk 0:00:28.4]} 24... cxd5 {[%clk 0:00:53.1]} 25. Bxe4 {[%clk
0:00:27]} 25... dxe4 {[%clk 0:00:53.7]} 26. Rd7 {[%clk 0:00:24.8]} 26... Kf8
{[%clk 0:00:47.6]} 27. Rc1 {[%clk 0:00:20.7]} 27... Re7 {[%clk 0:00:44.7]} 28.
Rcc7 {[%clk 0:00:18.1]} 28... Rxd7 {[%clk 0:00:43.8]} 29. Rxd7 {[%clk
0:00:17.9]} 29... Ke8 {[%clk 0:00:40.7]} 30. Rc7 {[%clk 0:00:17.4]} 30... Kd8
{[%clk 0:00:40]} 31. Rxf7 {[%clk 0:00:16.1]} 31... a6 {[%clk 0:00:33.9]} 32.
Rf8+ {[%clk 0:00:15.1]} 32... Kc7 {[%clk 0:00:33.8]} 33. Rxb8 {[%clk 0:00:14.3]}
33... Kxb8 {[%clk 0:00:34.7]} 34. f5 {[%clk 0:00:11]} 34... Kc7 {[%clk
0:00:33.5]} 35. Ke3 {[%clk 0:00:11.5]} 35... Kd6 {[%clk 0:00:33.5]} 36. Kxe4
{[%clk 0:00:11.7]} 36... b6 {[%clk 0:00:33]} 37. Kd4 {[%clk 0:00:10.8]} 37... h5
{[%clk 0:00:32.3]} 38. e4 {[%clk 0:00:10]} 38... Kc6 {[%clk 0:00:27.5]} 39. h3
{[%clk 0:00:09.2]} 39... Kd6 {[%clk 0:00:26.7]} 40. g4 {[%clk 0:00:08.7]} 40...
h4 {[%clk 0:00:26.3]} 41. a4 {[%clk 0:00:06.7]} 41... Kc6 {[%clk 0:00:14.5]} 42.
e5 {[%clk 0:00:05.2]} 42... fxe5+ {[%clk 0:00:13.5]} 43. Kxe5 {[%clk 0:00:05.4]}
43... a5 {[%clk 0:00:12.7]} 44. bxa5 {[%clk 0:00:03.5]} 44... bxa5 {[%clk
0:00:12.6]} 45. Ke6 {[%clk 0:00:03.5]} 45... Kc5 {[%clk 0:00:12.7]} 46. f6
{[%clk 0:00:03.8]} 46... Kb4 {[%clk 0:00:13.3]} 47. f7 {[%clk 0:00:04]} 47...
Kxa4 {[%clk 0:00:14.2]} 48. f8=Q {[%clk 0:00:03.6]} 48... Kb3 {[%clk 0:00:15.1]}
49. Qc5 {[%clk 0:00:02.8]} 49... a4 {[%clk 0:00:15.6]} 50. Qb5+ {[%clk
0:00:03.1]} 50... Ka3 {[%clk 0:00:15.3]} 51. Qxa4+ {[%clk 0:00:02.8]} 51... Kxa4
{[%clk 0:00:15.5]} 52. Kf6 {[%clk 0:00:03.3]} 52... Kb4 {[%clk 0:00:15.8]} 53.
Kg5 {[%clk 0:00:03.8]} 53... Kc4 {[%clk 0:00:16.7]} 54. Kxh4 {[%clk 0:00:03.9]}
54... Kd4 {[%clk 0:00:17.6]} 55. Kg5 {[%clk 0:00:03.8]} 55... Ke5 {[%clk
0:00:18.5]} 56. h4 {[%clk 0:00:03.5]} 56... Ke6 {[%clk 0:00:19.4]} 57. h5 {[%clk
0:00:03.9]} 57... Kf7 {[%clk 0:00:20.3]} 58. h6 {[%clk 0:00:03.9]} 58... Kg8
{[%clk 0:00:20.8]} 59. Kg6 {[%clk 0:00:03.7]} 59... Kh8 {[%clk 0:00:21.3]} 60.
g5 {[%clk 0:00:03.6]} 60... Kg8 {[%clk 0:00:21.8]} 61. Kf6 {[%clk 0:00:02.6]}
61... Kh8 {[%clk 0:00:22.5]} 62. g6 {[%clk 0:00:02.4]} 62... Kg8 {[%clk
0:00:23.1]} 63. g7 {[%clk 0:00:01.9]} 63... Kh7 {[%clk 0:00:22.4]} 64. Kf7
{[%clk 0:00:02.1]} 64... Kxh6 {[%clk 0:00:22.5]} 65. g8=Q {[%clk 0:00:01.8]}
65... Kh5 {[%clk 0:00:22.9]} 66. Kf6 {[%clk 0:00:01.8]} 66... Kh4 {[%clk
0:00:23.1]} 67. Kf5 {[%clk 0:00:02.1]} 67... Kh3 {[%clk 0:00:22.8]} 68. Kf4
{[%clk 0:00:02.4]} 68... Kh2 {[%clk 0:00:23.3]} 69. Kf3 {[%clk 0:00:02.4]} 69...
Kh3 {[%clk 0:00:24.1]} 70. Qg3# {[%clk 0:00:02]} 1-0